bitfinex/quotes_BTCUSD_20260221
["timestamp","ask_amount","ask_price","bid_price","bid_amount"]
[1771666595631,0.07326012,68250.0,68243.0,0.18140517]
[1771666596398,0.07326012,68250.0,68228.0,0.09725891]
[1771666596399,0.0732748,68237.0,68228.0,0.09725891]
[1771666596610,0.0732748,68237.0,68232.0,0.00030722]
[1771666596743,0.07327432,68237.0,68232.0,0.00030722]
[1771666597576,0.07327533,68236.0,68232.0,0.00030722]
[1771666598407,0.07327716,68235.0,68232.0,0.00030722]
[1771666599181,0.07327725,68234.0,68232.0,0.00030722]
[1771666599389,0.07327716,68235.0,68225.0,0.07328669]
[1771666599390,0.07327832,68233.0,68225.0,0.15663447]
[1771666599738,0.00011667,68233.0,68225.0,0.14645447]
[1771666599938,0.00011667,68233.0,68226.0,0.22992031]
[1771666600635,0.00011667,68233.0,68227.0,0.15663447]
[1771666601737,0.07327729,68234.0,68232.0,0.00022]
[1771666602142,0.07327832,68233.0,68232.0,0.00022]
[1771666602743,0.07327996,68232.0,68223.0,0.17204546]
[1771666602947,0.07327996,68232.0,68223.0,0.15702367]
[1771666603175,0.07327996,68232.0,68223.0,0.23031242]
[1771666604308,0.09652391,68232.0,68223.0,0.07367795]
[1771666605717,0.07328646,68226.0,68223.0,0.0003892]
[1771666606056,0.07328705,68225.0,68223.0,0.0003892]
[1771666606778,0.07328799,68224.0,68223.0,0.0003892]
[1771666606968,0.02324395,68226.0,68223.0,0.0003892]
[1771666607268,0.07328696,68225.0,68223.0,0.0003892]
[1771666608001,0.02324395,68226.0,68216.0,0.04755046]
[1771666608208,0.176,68238.0,68222.0,0.15663447]
[1771666608367,0.176,68238.0,68227.0,0.24743395]
[1771666608368,0.07327477,68237.0,68227.0,0.24743395]
[1771666608563,0.07327477,68237.0,68228.0,0.22991772]
[1771666608979,0.24927403,68238.0,68223.0,0.00022]
[1771666609187,0.07328019,68232.0,68223.0,0.07350906]
[1771666610022,0.07328016,68233.0,68223.0,0.07350906]
[1771666610387,0.07327545,68236.0,68225.0,0.07328634]
[1771666610814,0.07327619,68235.0,68226.0,0.07328501]
[1771666611013,0.07328122,68231.0,68223.0,0.00022]
[1771666611763,0.07328173,68230.0,68223.0,0.00022]
[1771666611954,0.02324395,68230.0,68223.0,0.00022]
[1771666612352,0.07328287,68229.0,68223.0,0.00022]
[1771666613642,0.0965258,68230.0,68223.0,0.00022]
[1771666615249,25.3965258,68230.0,68223.0,0.00022]
[1771666615456,0.02308313,68229.0,68223.0,0.00022]
[1771666615604,25.37328185,68230.0,68223.0,0.00022]
[1771666615925,25.37312102,68230.0,68223.0,0.00022]
[1771666617530,25.3,68230.0,68223.0,0.00022]
[1771666617729,25.3,68230.0,68227.0,0.0732842]
[1771666617934,25.3,68230.0,68223.0,0.00022]
[1771666618133,25.3,68230.0,68223.0,0.07350899]
[1771666623044,25.3,68230.0,68223.0,0.07350799]
[1771666623217,25.3,68230.0,68228.0,0.0732828]
[1771666623654,25.3,68230.0,68226.0,0.07328566]
[1771666624929,25.3,68230.0,68227.0,0.07328476]
[1771666627031,25.3,68230.0,68222.0,0.29315793]
[1771666627199,25.3,68230.0,68206.0,0.32376]
[1771666627200,0.07329233,68220.0,68211.0,0.07349195]
[1771666627409,0.07329372,68219.0,68211.0,0.0001902]
[1771666627565,0.02283164,68218.0,68211.0,0.0001902]
[1771666627988,0.09612627,68218.0,68211.0,0.0001902]
[1771666628186,0.07329551,68217.0,68211.0,0.0001902]
[1771666628979,0.09612684,68218.0,68211.0,0.0001902]
[1771666629174,0.0732907,68222.0,68218.0,0.00022]
[1771666629381,0.07329116,68223.0,68218.0,0.00022]
[1771666629598,0.07329197,68221.0,68218.0,0.00022]
[1771666630732,0.07328982,68223.0,68218.0,0.16295066]
[1771666630974,0.07328982,68223.0,68210.0,0.45856404]
[1771666630975,0.07328982,68223.0,68210.0,0.29321033]
[1771666631129,0.07328982,68223.0,68200.0,0.00016]
[1771666631130,0.02333868,68211.0,68200.0,0.16535371]
[1771666631270,0.00016,68220.0,68200.0,0.16535371]
[1771666631271,0.02333868,68219.0,68202.0,0.16273066]
[1771666631475,0.07330101,68212.0,68202.0,0.23604212]
[1771666631675,0.07330015,68213.0,68200.0,0.18319088]
[1771666631676,0.07330086,68213.0,68200.0,0.18319088]
[1771666631877,0.02333868,68219.0,68204.0,0.01783717]
[1771666632084,0.07330196,68211.0,68210.0,0.16273066]
[1771666632290,0.07430196,68211.0,68210.0,0.16273066]
[1771666632559,0.07330398,68210.0,68205.0,0.16273066]
[1771666633120,0.07330416,68209.0,68200.0,0.16535371]
[1771666633324,0.07430196,68211.0,68200.0,0.18319088]
[1771666633559,0.07430196,68211.0,68201.0,0.16273066]
[1771666633560,0.07330196,68211.0,68201.0,0.16273066]
[1771666633742,0.07330196,68211.0,68200.0,0.16535371]
[1771666633743,0.07331025,68204.0,68200.0,0.00016]
[1771666633947,0.16574413,68216.0,68200.0,1e-08]
[1771666634150,0.07331059,68203.0,68200.0,0.16273067]
[1771666634427,0.07330909,68205.0,68200.0,0.16273067]
[1771666634832,0.07330518,68208.0,68200.0,0.16273067]
[1771666635049,0.07330799,68206.0,68200.0,0.16273067]
[1771666635220,0.07330865,68205.0,68200.0,0.16273067]
[1771666635815,0.07330865,68205.0,68201.0,0.00022]
[1771666636020,0.07330865,68205.0,68201.0,0.16295066]
[1771666637040,0.07330625,68207.0,68201.0,0.16295066]
[1771666638446,0.07330945,68205.0,68201.0,0.16295066]
[1771666638658,0.07330953,68204.0,68201.0,0.00022]
[1771666639803,0.2933306,68220.0,68201.0,0.00022]
[1771666640020,0.07329443,68218.0,68202.0,0.16273066]
[1771666640225,0.07330394,68210.0,68202.0,0.16273066]
[1771666640438,0.29319166,68215.0,68202.0,0.18056783]
[1771666640850,0.0733042,68209.0,68202.0,0.18056783]
[1771666641344,0.02333868,68217.0,68202.0,0.18056783]
[1771666641525,0.07329985,68213.0,68204.0,0.07330879]
[1771666641930,0.07329985,68213.0,68205.0,0.16273066]
[1771666642354,0.07329875,68214.0,68205.0,0.16273066]
[1771666642845,0.09663419,68217.0,68205.0,0.23603851]
[1771666643046,0.07329908,68214.0,68205.0,0.16273066]
[1771666645485,0.07329339,68219.0,68211.0,0.07330104]
[1771666645690,0.00016,68220.0,68211.0,0.07330104]
[1771666646311,0.07345254,68220.0,68211.0,0.07330104]
[1771666647483,0.07328604,68226.0,68217.0,0.07329495]
[1771666647681,22.76932038,68200.0,68199.0,0.32820137]
[1771666647897,19.87532235,68200.0,68199.0,0.41251942]
[1771666648123,19.47141583,68200.0,68199.0,0.24978876]
[1771666648399,18.98667182,68200.0,68199.0,0.41251942]
[1771666648651,18.68751558,68200.0,68199.0,0.41251942]
[1771666648801,16.07162614,68200.0,68199.0,0.24978876]
[1771666649007,15.85144452,68200.0,68199.0,0.41251942]
[1771666649253,15.14955625,68200.0,68199.0,0.24978876]
[1771666649469,14.91881335,68200.0,68199.0,0.41251942]
[1771666649665,14.91881335,68200.0,68199.0,0.41351942]
[1771666649858,12.44971165,68200.0,68199.0,0.25078876]
[1771666650102,12.32021851,68200.0,68199.0,0.41273942]
[1771666650241,12.32021851,68200.0,68199.0,0.41373942]
[1771666650438,12.16655543,68200.0,68199.0,0.25200876]
[1771666650653,12.16655543,68200.0,68199.0,0.41373942]
[1771666650859,11.86348532,68200.0,68199.0,0.25000876]
[1771666651075,11.86348532,68200.0,68199.0,0.41473942]
[1771666651272,11.74066451,68200.0,68199.0,0.25100876]
[1771666651500,11.74066451,68200.0,68199.0,0.41373942]
[1771666651702,11.74066451,68200.0,68199.0,0.41473942]
[1771666651912,11.69467796,68200.0,68199.0,0.25200876]
[1771666652146,11.56843355,68200.0,68199.0,0.41473942]
[1771666652357,11.56843355,68200.0,68199.0,0.41373942]
[1771666652561,11.45119553,68200.0,68199.0,0.41473942]
[1771666653266,11.32316558,68200.0,68199.0,0.25100876]
[1771666653434,11.32316558,68200.0,68199.0,0.41373942]
[1771666653645,11.32316558,68200.0,68199.0,0.41473942]
[1771666653840,11.20383172,68200.0,68199.0,0.25100876]
[1771666654091,11.20383172,68200.0,68199.0,0.41273942]
[1771666654314,11.20383172,68200.0,68199.0,0.41473942]
[1771666654489,11.08490203,68200.0,68199.0,0.41473942]
[1771666654696,11.08490203,68200.0,68199.0,0.41373942]
[1771666654911,10.97109845,68200.0,68199.0,0.26982566]
[1771666655106,10.97109845,68200.0,68199.0,0.34214051]
[1771666655310,10.89884083,68200.0,68199.0,0.34214051]
[1771666655469,10.89884083,68200.0,68199.0,0.34114051]
[1771666655664,10.89884083,68200.0,68199.0,0.34214051]
[1771666656217,10.77197975,68200.0,68199.0,0.34114051]
[1771666656566,10.77197975,68200.0,68199.0,0.34314051]
[1771666656762,10.64391804,68200.0,68199.0,0.34214051]
[1771666657216,10.52936309,68200.0,68199.0,0.34314051]
[1771666658007,10.42046092,68200.0,68199.0,0.18040985]
[1771666658476,10.30898551,68200.0,68199.0,0.18040985]
[1771666658681,10.20152135,68200.0,68199.0,0.4122731]
[1771666659026,10.09175608,68200.0,68199.0,0.4122731]
[1771666659202,9.97988264,68200.0,68199.0,0.18040985]
[1771666659399,9.97988264,68200.0,68199.0,0.4112731]
[1771666659621,9.97988264,68200.0,68199.0,0.4102731]
[1771666659827,9.97988264,68200.0,68199.0,0.4122731]
[1771666660050,9.8706937,68200.0,68199.0,0.17940985]
[1771666660203,9.8706937,68200.0,68199.0,0.4112731]
[1771666660613,9.76438949,68200.0,68199.0,0.4112731]
[1771666661035,9.66288592,68200.0,68199.0,0.17940985]
[1771666661211,9.66288592,68200.0,68199.0,0.4102731]
[1771666661400,9.66288592,68200.0,68199.0,0.4112731]
[1771666661601,9.56337392,68200.0,68199.0,0.4122731]
[1771666662018,9.46580727,68200.0,68199.0,0.34001548]
[1771666662239,9.46580727,68200.0,68199.0,0.33901548]
[1771666662449,9.46580727,68200.0,68199.0,0.34001548]
[1771666662633,9.36496228,68200.0,68199.0,0.34001548]
[1771666662871,9.26534755,68200.0,68199.0,0.34001548]
[1771666663227,9.26534755,68200.0,68199.0,0.10615223]
[1771666663434,9.26534755,68200.0,68199.0,0.10715223]
[1771666663630,9.16409779,68200.0,68199.0,0.10815223]
[1771666663838,9.16409779,68200.0,68199.0,0.33901548]
[1771666664034,9.16429779,68200.0,68199.0,0.33901548]
[1771666664240,9.06384311,68200.0,68199.0,0.34001548]
[1771666664690,8.97060316,68200.0,68199.0,0.34001548]
[1771666664918,8.97060316,68200.0,68199.0,0.33901548]
[1771666665122,8.87603567,68200.0,68199.0,0.34001548]
[1771666665309,8.87603567,68200.0,68199.0,0.10815223]
[1771666665511,8.87603567,68200.0,68199.0,0.10715223]
[1771666665670,8.78337024,68200.0,68199.0,0.10715223]
[1771666666079,8.78337024,68200.0,68195.0,0.00022]
[1771666666424,0.025,68199.0,68189.0,0.07332531]
[1771666666620,0.025,68199.0,68188.0,0.07332668]
[1771666666621,0.025,68198.0,68188.0,0.07332668]
[1771666666818,0.025,68198.0,68190.0,0.07332439]
[1771666667029,0.025,68198.0,68191.0,0.07332247]
[1771666667321,0.025,68198.0,68187.0,0.29331057]
[1771666667527,0.16519371,68197.0,68187.0,0.29331057]
[1771666667691,0.16519371,68197.0,68191.0,0.07332248]
[1771666667874,0.025,68198.0,68191.0,0.07332248]
[1771666669706,0.025,68198.0,68189.0,0.0733256]
[1771666670118,0.025,68198.0,68191.0,0.07332336]
[1771666670498,0.025,68198.0,68189.0,0.0733256]
[1771666670861,0.025,68198.0,68191.0,0.07332336]
[1771666671516,0.025,68198.0,68189.0,0.06352206]
[1771666671999,0.025,68198.0,68190.0,0.07332446]
[1771666674596,8.62444083,68200.0,68191.0,0.00022]
[1771666674825,8.62444083,68200.0,68187.0,0.00022]
[1771666674826,6.70965602,68200.0,68199.0,0.07331485]
[1771666674944,6.70965602,68200.0,68198.0,0.07331561]
[1771666676202,6.70965602,68200.0,68198.0,0.07431561]
[1771666676583,6.70965602,68200.0,68198.0,0.07531561]
[1771666677567,6.70965602,68200.0,68199.0,0.07331485]
[1771666678046,6.70965602,68200.0,68199.0,0.07316865]
[1771666678864,6.70965602,68200.0,68199.0,0.001]
[1771666679029,6.70965602,68200.0,68199.0,0.002]
[1771666681982,6.70965602,68200.0,68199.0,0.07531485]
[1771666682414,5.91427972,68200.0,68199.0,0.07531485]
[1771666682739,5.84493365,68200.0,68199.0,0.07531485]
[1771666683108,5.84493365,68200.0,68198.0,0.06298114]
[1771666683310,5.84493365,68200.0,68199.0,0.07331485]
[1771666683939,5.84493365,68200.0,68199.0,0.07431485]
[1771666684351,5.41468348,68200.0,68199.0,0.07431485]
[1771666684554,5.20107807,68200.0,68199.0,0.07431485]
[1771666684805,5.20107807,68200.0,68199.0,0.001]
[1771666684982,5.20107807,68200.0,68197.0,0.17162028]
[1771666685193,5.20107807,68200.0,68198.0,0.07331509]
[1771666685551,5.20107807,68200.0,68199.0,0.001]
[1771666686215,5.20107807,68200.0,68198.0,0.07331509]
[1771666686712,5.20107807,68200.0,68199.0,0.001]
[1771666686906,5.20107807,68200.0,68198.0,0.07331509]
[1771666687205,5.20107807,68200.0,68199.0,0.001]
[1771666687506,5.20107807,68200.0,68199.0,0.07431485]
[1771666688666,5.20107807,68200.0,68199.0,0.07331485]
[1771666688867,5.20107807,68200.0,68199.0,0.001]
[1771666689115,5.44970095,68200.0,68197.0,0.24493524]
[1771666689480,5.44970095,68200.0,68199.0,0.001]
[1771666689687,5.20107807,68200.0,68199.0,0.001]
[1771666689883,5.20107807,68200.0,68199.0,0.002]
[1771666690095,5.20107807,68200.0,68197.0,0.24493524]
[1771666690298,5.20107807,68200.0,68198.0,0.07331593]
[1771666690499,5.20107807,68200.0,68199.0,0.07331485]
[1771666690696,5.20107807,68200.0,68199.0,0.07431485]
[1771666691294,5.20107807,68200.0,68199.0,0.07531485]
[1771666691851,5.20107807,68200.0,68198.0,0.07331489]
[1771666692224,5.20107807,68200.0,68197.0,0.24515524]
[1771666692596,5.22607807,68200.0,68197.0,0.24515524]
[1771666693304,5.02568867,68200.0,68199.0,0.07331485]
[1771666693507,4.95592911,68200.0,68199.0,0.07331485]
[1771666693920,4.95592911,68200.0,68198.0,0.07331593]
[1771666694124,4.95592911,68200.0,68199.0,0.07331485]
[1771666695252,4.7762788,68200.0,68199.0,0.07331485]
[1771666695899,4.7762788,68200.0,68197.0,0.04764834]
[1771666696100,0.25882723,68199.0,68197.0,0.07331637]
[1771666696339,4.7762788,68200.0,68196.0,0.17608]
[1771666696340,0.025,68198.0,68196.0,0.17608]
[1771666696970,4.7762788,68200.0,68197.0,0.07331637]
[1771666697186,4.8012788,68200.0,68198.0,0.0733152]
[1771666697587,4.7762788,68200.0,68198.0,0.0733152]
[1771666697939,3.86877845,68200.0,68198.0,0.0733152]
[1771666700396,3.86877845,68200.0,68197.0,0.07353663]
[1771666700599,3.86877845,68200.0,68198.0,0.07331584]
[1771666704965,3.86877845,68200.0,68198.0,0.07431584]
[1771666705528,3.86877845,68200.0,68198.0,0.07331584]
[1771666708021,3.83539024,68200.0,68198.0,0.07331584]
[1771666709489,3.83539024,68200.0,68198.0,0.07331586]
[1771666709788,3.83539024,68200.0,68197.0,0.07353682]
[1771666711402,3.83539024,68200.0,68198.0,0.07331586]
[1771666714092,4.09884676,68200.0,68198.0,0.07331586]
[1771666714319,4.09884676,68200.0,68197.0,0.07353665]
[1771666714518,4.09868594,68200.0,68197.0,0.07353665]
[1771666716529,0.26345652,68199.0,68197.0,0.07353665]
[1771666716954,0.26345652,68199.0,68198.0,0.07353593]
[1771666717331,0.26345652,68199.0,68196.0,0.24939743]
[1771666717532,0.28845652,68199.0,68196.0,0.24939743]
[1771666717736,3.83522942,68200.0,68196.0,0.24939743]
[1771666717737,2.76978594,68200.0,68196.0,0.24939743]
[1771666717936,3.04555762,68200.0,68196.0,0.24939743]
[1771666718107,3.04555762,68200.0,68197.0,0.07331623]
[1771666718309,2.79410074,68200.0,68197.0,0.07331623]
[1771666718506,0.25145688,68199.0,68197.0,0.07331623]
[1771666719555,0.27577168,68199.0,68193.0,0.29328379]
[1771666719991,0.0243148,68199.0,68193.0,0.29328379]
[1771666721569,0.0243148,68199.0,68197.0,0.07331609]
[1771666721810,2.76978594,68200.0,68194.0,0.2932795]
[1771666721983,2.76978594,68200.0,68198.0,0.07331509]
[1771666723141,2.71348594,68200.0,68198.0,0.07331509]
[1771666723580,2.69188594,68200.0,68198.0,0.07331509]
[1771666724968,2.47178594,68200.0,68198.0,0.07331509]
[1771666725978,2.36458594,68200.0,68198.0,0.07331509]
[1771666728295,2.32358594,68200.0,68199.0,0.07331485]
[1771666728901,2.32358594,68200.0,68198.0,0.07331593]
[1771666729507,2.32358594,68200.0,68199.0,0.07331485]
[1771666729709,2.30798594,68200.0,68199.0,0.07331485]
[1771666732718,2.30798594,68200.0,68198.0,0.07331593]
[1771666741804,2.29352787,68200.0,68198.0,0.07331593]
[1771666742223,2.29352787,68200.0,68197.0,0.07353677]
[1771666742421,2.04269862,68200.0,68198.0,0.07331569]
[1771666742774,2.04253783,68200.0,68198.0,0.07331569]
[1771666747018,2.04253783,68200.0,68198.0,0.07353569]
[1771666747423,0.07330538,68208.0,68199.0,0.07331474]
[1771666748888,0.09609103,68208.0,68199.0,0.07331474]
[1771666749896,0.07330726,68207.0,68198.0,0.00022]
[1771666750098,0.33366583,68207.0,68198.0,0.07353567]
[1771666751523,0.33366583,68207.0,68199.0,0.0733148]
[1771666753790,0.33386583,68207.0,68199.0,0.0733148]
[1771666753994,0.33386583,68207.0,68198.0,0.00022]
[1771666753995,0.00016,68220.0,68201.0,0.23451003]
[1771666754195,0.00016,68220.0,68211.0,0.09736374]
[1771666754196,0.07345249,68220.0,68211.0,0.09736374]
[1771666754395,0.07329448,68218.0,68211.0,0.02406276]
[1771666754638,0.07345249,68220.0,68208.0,0.07330318]
[1771666754807,0.00016,68220.0,68207.0,0.02406276]
[1771666755022,0.00016,68220.0,68212.0,0.07330006]
[1771666755270,0.00016,68220.0,68214.0,0.07329771]
[1771666755548,0.07328638,68226.0,68216.0,0.0732964]
[1771666755946,0.07328815,68224.0,68215.0,0.09736034]
[1771666756306,0.07328815,68224.0,68216.0,0.02406276]
[1771666757033,0.16555065,68240.0,68215.0,0.0001189]
[1771666757372,0.07328274,68229.0,68221.0,0.02406276]
[1771666757718,0.07328174,68230.0,68222.0,0.02406276]
[1771666758264,0.29311269,68234.0,68222.0,0.02406276]
[1771666758466,0.07328161,68230.0,68222.0,0.02406276]
[1771666759015,0.16525675,68232.0,68222.0,0.02406276]
[1771666759016,0.23853669,68232.0,68222.0,0.02406276]
[1771666759306,0.07328047,68231.0,68222.0,0.02406276]
[1771666759658,0.07328155,68230.0,68222.0,0.02406276]
[1771666759966,0.07328155,68230.0,68222.0,0.09735278]
[1771666760396,0.0002,68229.0,68222.0,0.09735278]
[1771666763574,0.0002939,68240.0,68230.0,0.07328054]
[1771666763750,0.07347617,68236.0,68223.0,0.02406276]
[1771666764045,0.23738878,68234.0,68223.0,0.02406276]
[1771666764245,0.23738878,68234.0,68225.0,0.0732848]
[1771666764482,0.23738878,68234.0,68226.0,0.07328493]
[1771666764684,0.23738878,68234.0,68226.0,0.07328555]
[1771666764825,0.23738878,68234.0,68227.0,0.07328439]
[1771666766445,0.0002,68236.0,68228.0,0.0732835]
[1771666766666,0.0002,68236.0,68229.0,0.07328262]
[1771666766867,0.0002,68234.0,68230.0,0.07328124]
[1771666767149,0.0002,68234.0,68229.0,0.07328243]
[1771666768151,0.0002,68234.0,68226.0,0.09734789]
[1771666768356,0.31086612,68234.0,68224.0,0.07328744]
[1771666768541,0.31086612,68234.0,68226.0,0.07328492]
[1771666768542,0.23758878,68234.0,68226.0,0.07328492]
[1771666768748,0.23758878,68234.0,68227.0,0.07328401]
[1771666768965,0.26055857,68234.0,68227.0,0.07328401]
[1771666769161,0.02296979,68233.0,68220.0,0.29332486]
[1771666769379,0.23738878,68232.0,68228.0,0.07328355]
[1771666769580,0.23738878,68231.0,68228.0,0.07328355]
[1771666769803,0.23738878,68229.0,68228.0,0.07328355]
[1771666770991,0.23738878,68229.0,68228.0,0.07310355]
[1771666771198,0.0002,68234.0,68220.0,0.00016]
[1771666771199,0.26035857,68233.0,68229.0,0.07328262]
[1771666771446,0.0002,68234.0,68232.0,0.07327884]
[1771666771619,0.0002,68234.0,68231.0,0.07327975]
[1771666771620,0.001,68233.0,68231.0,0.07327975]
[1771666772257,0.0002,68234.0,68231.0,0.07327975]
[1771666775143,0.0002,68234.0,68222.0,0.31744033]
[1771666775366,0.16525675,68232.0,68229.0,0.07328224]
[1771666775566,0.02296979,68232.0,68229.0,0.07310183]
[1771666775767,0.02296979,68232.0,68222.0,0.00022]
[1771666775968,0.02296979,68232.0,68224.0,0.29314958]
[1771666776174,0.02296979,68232.0,68228.0,0.07328363]
[1771666776175,0.23738878,68232.0,68228.0,0.07328363]
[1771666776376,0.02296979,68231.0,68228.0,0.07328363]
[1771666777332,0.02296979,68231.0,68224.0,0.07328753]
[1771666777536,0.02296979,68231.0,68227.0,0.07328432]
[1771666777832,0.23769339,68234.0,68226.0,0.07328387]
[1771666778182,0.26243282,68234.0,68227.0,0.07328476]
[1771666778355,0.33571025,68234.0,68227.0,0.07328476]
[1771666778971,1e-08,68254.0,68253.0,0.07325685]
[1771666779166,0.02473943,68262.0,68250.0,0.29303762]
[1771666779167,0.02473943,68258.0,68250.0,0.00016]
[1771666779362,0.02473943,68258.0,68240.0,0.00016]
[1771666779363,0.23749339,68255.0,68240.0,0.00016]
[1771666779586,0.02473943,68254.0,68240.0,0.00016]
[1771666779814,0.0001645,68259.0,68252.0,0.07325714]
[1771666779963,0.02490393,68259.0,68252.0,0.07325714]
[1771666780353,0.0001645,68259.0,68256.0,0.07325257]
[1771666780551,0.0003662,68259.0,68256.0,0.07325257]
[1771666780748,0.0003662,68259.0,68257.0,0.07325245]
[1771666781304,0.0003662,68259.0,68258.0,0.07325148]
[1771666782721,0.0003662,68259.0,68256.0,0.07325257]
[1771666782905,0.01841938,68265.0,68252.0,0.29302932]
[1771666783917,0.01841938,68265.0,68257.0,0.07325214]
[1771666784155,0.01841938,68264.0,68255.0,0.0732547]
[1771666784296,0.01841938,68264.0,68256.0,0.07325336]
[1771666784508,0.01841938,68264.0,68257.0,0.07325248]
[1771666788513,0.00016,68270.0,68250.0,0.00016]
[1771666788683,0.00016,68290.0,68270.0,0.02504301]
[1771666788684,0.17612,68290.0,68270.0,0.02504301]
[1771666788981,0.17612,68290.0,68272.0,0.09823539]
[1771666788982,0.07338646,68286.0,68272.0,0.09823539]
[1771666789139,0.0001645,68286.0,68278.0,0.07322941]
[1771666789340,0.07338608,68286.0,68278.0,0.07322941]
[1771666789539,0.07338608,68286.0,68277.0,0.07323083]
[1771666789820,0.07338608,68286.0,68278.0,0.07322986]
[1771666790639,0.57887014,68290.0,68270.0,0.23492649]
[1771666790640,0.17594,68290.0,68283.0,0.07322399]
[1771666791100,0.24915716,68290.0,68282.0,0.07322561]
[1771666791301,0.24915716,68290.0,68277.0,0.025]
[1771666791302,0.00016,68280.0,68260.0,0.00016]
[1771666791520,0.0732319,68277.0,68260.0,0.00027699]
[1771666791705,0.0732319,68277.0,68267.0,0.07324089]
[1771666792349,0.07323251,68276.0,68267.0,0.07324089]
[1771666792984,0.07322895,68279.0,68269.0,0.07323968]
[1771666793130,0.16541675,68280.0,68265.0,0.29297388]
[1771666793131,0.23864545,68280.0,68271.0,0.07323651]
[1771666793735,0.07323323,68276.0,68267.0,0.07324099]
[1771666794136,0.07323127,68277.0,68268.0,0.07324062]
[1771666795266,0.07323242,68276.0,68268.0,0.07324062]
[1771666797207,0.00016,68280.0,68264.0,0.23488348]
[1771666797429,0.00016,68280.0,68272.0,0.07323554]
[1771666797868,0.07322896,68279.0,68271.0,0.07323745]
[1771666798077,0.07322896,68279.0,68269.0,0.30812242]
[1771666798936,0.07323222,68276.0,68268.0,0.0732401]
[1771666799159,0.07323345,68275.0,68265.0,0.09824184]
[1771666799368,0.07323345,68275.0,68266.0,0.0732429]
[1771666799590,0.07323345,68275.0,68267.0,0.07324162]
[1771666799795,0.07323222,68276.0,68267.0,0.07324162]
[1771666801760,0.07323222,68276.0,68268.0,0.0732398]
[1771666802258,0.07323222,68276.0,68268.0,0.07672188]
[1771666805050,0.02290913,68281.0,68268.0,0.07672188]
[1771666805051,0.00016,68300.0,68270.0,0.00016]
[1771666805292,7.73e-05,68302.0,68290.0,0.00016]
[1771666805526,0.23757069,68302.0,68290.0,0.00016]
[1771666805931,0.23757069,68302.0,68294.0,0.07321272]
[1771666806124,7.73e-05,68302.0,68301.0,0.07320537]
[1771666806263,7.73e-05,68302.0,68299.0,0.0732071]
[1771666806473,0.00019423,68302.0,68300.0,0.07320596]
[1771666807689,0.00019423,68302.0,68300.0,0.07420596]
[1771666807890,0.00019423,68302.0,68300.0,0.07320596]
[1771666808277,0.00019423,68302.0,68300.0,0.07420596]
[1771666809016,0.00019423,68302.0,68301.0,0.07320537]
[1771666810414,0.00019423,68302.0,68301.0,0.07520537]
[1771666810655,0.00019423,68302.0,68301.0,0.07420537]
[1771666811035,0.00019423,68302.0,68301.0,0.07520537]
[1771666811234,0.00039423,68302.0,68301.0,0.07420537]
[1771666811748,0.00039423,68302.0,68301.0,0.07320537]
[1771666812070,0.00039423,68302.0,68301.0,0.07420537]
[1771666812448,0.00039423,68302.0,68301.0,0.07320537]
[1771666812946,0.00039423,68302.0,68301.0,0.07305926]
[1771666813124,0.00039423,68302.0,68266.0,0.49902955]
[1771666813125,0.00039423,68302.0,68290.0,0.00016]
[1771666813331,0.02290913,68300.0,68290.0,0.00016]
[1771666813667,0.02290913,68300.0,68295.0,0.07321085]
[1771666813866,0.00039423,68302.0,68295.0,0.07321085]
[1771666814019,0.00039423,68302.0,68296.0,0.07321047]
[1771666814217,0.00139423,68302.0,68296.0,0.07321047]
[1771666814427,0.00039423,68302.0,68296.0,0.07321047]
[1771666818090,0.00039423,68302.0,68297.0,0.07320947]
[1771666818289,0.00039423,68302.0,68300.0,0.07320644]
[1771666818842,0.14951309,68309.0,68300.0,0.07320644]
[1771666819210,0.14951309,68309.0,68301.0,0.0732044]
[1771666819555,0.14951309,68309.0,68301.0,0.07305829]
[1771666822166,0.07319789,68308.0,68301.0,0.07305829]
[1771666822373,0.07319789,68308.0,68298.0,0.07320788]
[1771666822516,0.07320036,68306.0,68297.0,0.025]
[1771666822946,0.07320036,68306.0,68297.0,0.07320759]
[1771666823372,0.07320036,68306.0,68298.0,0.07320754]
[1771666823575,0.07319929,68307.0,68299.0,0.07320718]
[1771666824103,0.07319929,68307.0,68300.0,0.07320643]
[1771666824754,0.07319929,68307.0,68296.0,0.02522]
[1771666824970,0.07319929,68307.0,68296.0,0.00022]
[1771666825557,0.07319929,68307.0,68299.0,0.07320703]
[1771666825761,0.07319929,68307.0,68300.0,0.00022]
[1771666826292,0.07319929,68307.0,68300.0,7.391e-05]
[1771666826439,0.07319789,68308.0,68300.0,7.391e-05]
[1771666826440,0.07320029,68306.0,68300.0,7.391e-05]
[1771666829169,0.07320029,68306.0,68295.0,0.29284538]
[1771666829170,0.07320658,68300.0,68290.0,0.00016]
[1771666829338,0.07320658,68300.0,68290.0,0.00027693]
[1771666829339,0.02290913,68300.0,68290.0,0.00027693]
[1771666829771,0.09611583,68300.0,68290.0,0.00027693]
[1771666829976,0.09611583,68300.0,68291.0,0.07321608]
[1771666830532,0.09611583,68300.0,68292.0,0.07321409]
[1771666830979,0.02290913,68300.0,68290.0,0.00027693]
[1771666831180,0.21681905,68299.0,68282.0,0.09844503]
[1771666831420,0.09612461,68292.0,68283.0,0.07322375]
[1771666831622,0.07321787,68290.0,68282.0,0.09844553]
[1771666831827,0.07321787,68290.0,68282.0,0.07344553]
[1771666832133,0.07321825,68289.0,68282.0,0.00022]
[1771666832437,0.07322071,68287.0,68280.0,0.00016]
[1771666832638,0.0732223,68286.0,68278.0,0.07322923]
[1771666832996,0.0732223,68286.0,68277.0,0.07323065]
[1771666833188,0.07322252,68285.0,68277.0,0.07323065]
[1771666833389,0.00016,68290.0,68276.0,0.07323111]
[1771666833390,0.29288039,68288.0,68276.0,0.07323111]
[1771666833591,0.07322296,68285.0,68277.0,0.07323061]
[1771666834228,0.07322296,68285.0,68270.0,0.21554893]
[1771666834229,0.00016,68280.0,68258.0,0.3158991]
[1771666834445,0.02290913,68270.0,68261.0,0.02482]
[1771666834647,0.17584,68274.0,68265.0,0.28863248]
[1771666834906,0.02306913,68280.0,68272.0,0.09814556]
[1771666834907,0.00016,68280.0,68272.0,0.09814556]
[1771666835053,0.17584,68284.0,68276.0,0.02491]
[1771666835255,0.07322472,68283.0,68276.0,0.02491]
[1771666835446,0.07322609,68282.0,68276.0,0.02491]
[1771666835837,0.17584,68284.0,68271.0,0.02491]
[1771666836050,0.17584,68284.0,68243.0,0.61848415]
[1771666836051,0.17584,68284.0,68263.0,0.31354478]
[1771666836052,0.07323512,68274.0,68263.0,0.31354478]
[1771666836260,0.02290913,68270.0,68263.0,0.31366177]
[1771666836623,0.02290913,68270.0,68264.0,0.07324504]
[1771666836825,0.02290913,68270.0,68265.0,0.0732438]
[1771666837530,0.07323559,68273.0,68265.0,0.0732438]
[1771666837973,0.07423439,68274.0,68265.0,0.0732438]
[1771666839307,0.07323439,68274.0,68265.0,0.0732438]
[1771666840013,0.07323575,68273.0,68265.0,0.0732438]